[Event "55th Rubinstein Memorial-C 2019"]
[Site "Polanica-Zdroj"]
[Date "2019.08.23"]
[Round "7.3"]
[White "Kroliczek, Gabriela"]
[Black "Tokmantsev, Ivan"]
[Result "1-0"]
[ECO "B01"]
[WhiteElo "1787"]
[BlackElo "1918"]
[Annotator "NA"]
[PlyCount "131"]
[EventDate "2019.08.17"]
[EventType "swiss"]
[EventCountry "POL"]
[SourceTitle "playchess.com"]
[Source "ChessBase"]
[SourceQuality "1"]
[TimeControl "40/5400+30:1800+30"]

1. e4 {[%emt 0:00:00]} d5 {[%emt 0:01:17]} 2. exd5 {[%emt 0:00:00]} Qxd5 {[%emt 0:00:11]} 3. d4 {[%emt 0:00:00]} c6 {[%emt 0:00:18]} 4. Nc3 {[%emt 0:00:00]} Qa5 {[%emt 0:00:48]} 5. Bd3 {[%emt 0:00:11]} Nf6 {[%emt 0:00:44]} 6. Nge2 {[%emt 0:00:35]} Bg4 {[%emt 0:00:49]} 7. f3 {[%emt 0:01:08]} Bf5 {[%emt 0:00:43]} 8. O-O {[%emt 0:02:23]} Bxd3 {[%emt 0:01:02]} 9. Qxd3 {[%emt 0:00:05]} e6 {[%emt 0:00:36]} 10. a3 {[%emt 0:03:34]} Nbd7 {[%emt 0:00:43]} 11. Bd2 {[%emt 0:01:34]} Qc7 {[%emt 0:01:12]} 12. Ne4 {[%emt 0:01:20]} Bd6 {[%emt 0:01:45]} 13. Nxd6+ {[%emt 0:01:40]} Qxd6 {[%emt 0:00:05]} 14. Rad1 {[%emt 0:07:42]} Qc7 {[%emt 0:02:47]} 15. c4 {[%emt 0:09:38]} O-O {[%emt 0:00:25]} 16. Ng3 {[%emt 0:05:22]} Rfd8 {[%emt 0:12:13]} 17. Qe2 {[%emt 0:02:37]} c5 {[%emt 0:01:04]} 18. Be3 {[%emt 0:02:47]} cxd4 {[%emt 0:03:52]} 19. Bxd4 {[%emt 0:00:51]} Rac8 {[%emt 0:00:59]} 20. b3 {[%emt 0:00:17]} Qa5 {[%emt 0:03:16]} 21. Qb2 {[%emt 0:00:55]} b6 {[%emt 0:02:20]} 22. Rfe1 {[%emt 0:05:24]} Re8 {[%emt 0:10:53]} 23. Ne4 {[%emt 0:04:55]} Nxe4 {[%emt 0:10:09]} 24. Rxe4 {[%emt 0:00:08]} e5 {[%emt 0:03:05]} 25. Bf2 {[%emt 0:00:32]} Nf6 {[%emt 0:01:31]} 26. Re2 {[%emt 0:04:55]} e4 {[%emt 0:06:20]} 27. fxe4 {[%emt 0:00:13]} Rxe4 {[%emt 0:02:05]} 28. Rxe4 {[%emt 0:00:06]} Nxe4 {[%emt 0:00:05]} 29. Rd5 {[%emt 0:01:44]} b5 {[%emt 0:09:07]} 30. Rxb5 {[%emt 0:02:25]} Qc7 {[%emt 0:03:23]} 31. Be3 {[%emt 0:03:05]} Re8 {[%emt 0:02:44]} 32. Qd4 {[%emt 0:02:35]} Qe7 {[%emt 0:05:31]} 33. Qxa7 {[%emt 0:08:47]} Qh4 {[%emt 0:02:05]} 34. Rf5 {[%emt 0:00:26]} Nf6 {[%emt 0:08:59]} 35. Rf1 {[%emt 0:01:54]} Qh5 {[%emt 0:03:16]} 36. h3 {[%emt 0:05:29]} h6 {[%emt 0:00:21]} 37. Qd4 {[%emt 0:03:13]} Ne4 {[%emt 0:00:10]} 38. Qd1 {[%emt 0:01:58]} Qe5 {[%emt 0:01:06]} 39. Bd4 {[%emt 0:02:49]} Qd6 {[%emt 0:00:14]} 40. Bb2 {[%emt 0:01:14]} Qb6+ {[%emt 0:00:45]} 41. Qd4 {[%emt 0:30:16]} Qg6 {[%emt 0:30:07]} 42. Re1 {[%emt 0:03:31]} f5 {[%emt 0:00:16]} 43. Bc1 {[%emt 0:07:34]} Qg3 {[%emt 0:00:39]} 44. Qe3 {[%emt 0:01:39]} Qg6 {[%emt 0:00:00]} 45. Qd3 {[%emt 0:01:01]} Kh7 {[%emt 0:00:29]} 46. b4 {[%emt 0:00:42]} Nc5 {[%emt 0:00:16]} 47. Qf1 {[%emt 0:01:04]} Ne4 {[%emt 0:00:56]} 48. Qf4 {[%emt 0:00:56]} Rd8 {[%emt 0:00:22]} 49. Rf1 {[%emt 0:00:50]} Ng3 {[%emt 0:00:06]} 50. Re1 {[%emt 0:00:15]} Rd1 {[%emt 0:01:20]} 51. Qf2 {[%emt 0:01:22]} Ne4 {[%emt 0:01:07]} 52. Qe2 {[%emt 0:01:02]} Rd4 {[%emt 0:00:51]} 53. Be3 {[%emt 0:01:06]} Rd7 {[%emt 0:00:23]} 54. b5 {[%emt 0:00:11]} Re7 {[%emt 0:00:23]} 55. Qf3 {[%emt 0:00:53]} Ng5 {[%emt 0:00:30]} 56. Qg3 {[%emt 0:00:34]} Qe6 {[%emt 0:00:36]} 57. Bf2 {[%emt 0:00:27]} Ne4 {[%emt 0:00:06]} 58. Qf4 {[%emt 0:00:29]} g5 {[%emt 0:00:31]} 59. Qc1 {[%emt 0:00:03]} Rd7 {[%emt 0:00:50]} 60. c5 {[%emt 0:00:23]} Qa2 {[%emt 0:00:07]} 61. Qe3 {[%emt 0:00:54]} Rd2 {[%emt 0:00:22]} 62. Rf1 {[%emt 0:00:34]} Re2 {[%emt 0:00:01]} 63. Qf3 {[%emt 0:00:34]} Kg6 {[%emt 0:01:00]} 64. b6 {[%emt 0:00:10]} Rb2 {[%emt 0:00:38]} 65. g4 {[%emt 0:00:23]} Nd2 {[%emt 0:00:56]} 66. Qxf5+ {[%emt 0:00:08]} 1-0

[Event "55th Rubinstein Memorial-C 2019"]
[Site "Polanica-Zdroj"]
[Date "2019.08.23"]
[Round "7.4"]
[White "Myrmus, Mateusz"]
[Black "Kaliszuk, Kamil"]
[Result "0-1"]
[ECO "B22"]
[WhiteElo "1598"]
[BlackElo "1853"]
[Annotator "NA"]
[PlyCount "96"]
[EventDate "2019.08.17"]
[EventType "swiss"]
[EventCountry "POL"]
[SourceTitle "playchess.com"]
[Source "ChessBase"]
[SourceQuality "1"]
[TimeControl "40/5400+30:1800+30"]

1. e4 {[%emt 0:00:00]} c5 {[%emt 0:00:20]} 2. c3 {[%emt 0:00:00]} d5 {[%emt 0:00:30]} 3. exd5 {[%emt 0:00:00]} Qxd5 {[%emt 0:00:06]} 4. d4 {[%emt 0:00:15]} Nf6 {[%emt 0:00:11]} 5. Nf3 {[%emt 0:00:21]} e6 {[%emt 0:00:12]} 6. Nbd2 {[%emt 0:10:00]} Nc6 {[%emt 0:12:56]} 7. Bc4 {[%emt 0:00:50]} Qd8 {[%emt 0:04:45]} 8. Bb5 {[%emt 0:09:02]} Bd7 {[%emt 0:02:05]} 9. a3 {[%emt 0:06:13]} cxd4 {[%emt 0:10:07]} 10. cxd4 {[%emt 0:00:11]} a6 {[%emt 0:00:56]} 11. Ba4 {[%emt 0:05:02]} Be7 {[%emt 0:09:06]} 12. O-O {[%emt 0:00:20]} O-O {[%emt 0:00:48]} 13. Bc2 {[%emt 0:04:27]} Qc7 {[%emt 0:09:04]} 14. Bb1 {[%emt 0:03:05]} Rfd8 {[%emt 0:01:20]} 15. Nb3 {[%emt 0:05:27]} h6 {[%emt 0:06:17]} 16. Qc2 {[%emt 0:06:22]} Rac8 {[%emt 0:00:55]} 17. Re1 {[%emt 0:16:33]} Bd6 {[%emt 0:04:13]} 18. Nbd2 {[%emt 0:06:15]} Ne7 {[%emt 0:04:54]} 19. Qxc7 {[%emt 0:02:41]} Bxc7 {[%emt 0:02:01]} 20. Ne4 {[%emt 0:01:08]} Nxe4 {[%emt 0:02:52]} 21. Bxe4 {[%emt 0:00:04]} Bc6 {[%emt 0:00:14]} 22. Bxc6 {[%emt 0:02:58]} Nxc6 {[%emt 0:00:25]} 23. Be3 {[%emt 0:00:22]} Rd5 {[%emt 0:01:05]} 24. Red1 {[%emt 0:01:52]} Rcd8 {[%emt 0:00:31]} 25. Kf1 {[%emt 0:01:03]} e5 {[%emt 0:03:31]} 26. Rac1 {[%emt 0:00:42]} Bb6 {[%emt 0:01:09]} 27. Nd2 {[%emt 0:02:14]} Bxd4 {[%emt 0:03:53]} 28. Nc4 {[%emt 0:01:41]} f5 {[%emt 0:08:50]} 29. g3 {[%emt 0:06:11]} g5 {[%emt 0:03:26]} 30. f4 {[%emt 0:02:58]} gxf4 {[%emt 0:04:33]} 31. gxf4 {[%emt 0:00:04]} Bxe3 {[%emt 0:00:26]} 32. Nxe3 {[%emt 0:00:04]} Rxd1+ {[%emt 0:00:12]} 33. Rxd1 {[%emt 0:00:05]} Rxd1+ {[%emt 0:00:20]} 34. Nxd1 {[%emt 0:00:04]} Kf7 {[%emt 0:01:18]} 35. Kf2 {[%emt 0:00:31]} Ke6 {[%emt 0:00:04]} 36. Nc3 {[%emt 0:00:40]} exf4 {[%emt 0:01:05]} 37. b4 {[%emt 0:01:04]} b5 {[%emt 0:00:40]} 38. a4 {[%emt 0:01:38]} bxa4 {[%emt 0:00:12]} 39. Nxa4 {[%emt 0:00:10]} Nxb4 {[%emt 0:00:11]} 40. Kf3 {[%emt 0:00:08]} Ke5 {[%emt 0:01:02]} 41. Nb6 {[%emt 0:30:05]} Nd5 {[%emt 0:30:48]} 42. Nc4+ {[%emt 0:01:21]} Kd4 {[%emt 0:00:08]} 43. Nd6 {[%emt 0:00:22]} a5 {[%emt 0:02:06]} 44. Nxf5+ {[%emt 0:00:07]} Kc3 {[%emt 0:00:07]} 45. Ke4 {[%emt 0:00:39]} a4 {[%emt 0:01:11]} 46. Kxd5 {[%emt 0:00:45]} a3 {[%emt 0:00:02]} 47. Nd4 {[%emt 0:00:28]} a2 {[%emt 0:00:08]} 48. Ne2+ {[%emt 0:00:19]} Kb2 {[%emt 0:00:09]} 0-1

[Event "55th Rubinstein Memorial-C 2019"]
[Site "Polanica-Zdroj"]
[Date "2019.08.23"]
[Round "7.5"]
[White "Zalega, Maciej"]
[Black "Mike, Patryk"]
[Result "1/2-1/2"]
[ECO "C88"]
[WhiteElo "1429"]
[BlackElo "1840"]
[Annotator "NA"]
[PlyCount "60"]
[EventDate "2019.08.17"]
[EventType "swiss"]
[EventCountry "POL"]
[SourceTitle "playchess.com"]
[Source "ChessBase"]
[SourceQuality "1"]
[TimeControl "40/5400+30:1800+30"]

1. e4 {[%emt 0:00:00]} e5 {[%emt 0:00:00]} 2. Nf3 {[%emt 0:00:00]} Nc6 {[%emt 0:00:20]} 3. Bb5 {[%emt 0:00:00]} a6 {[%emt 0:00:51]} 4. Ba4 {[%emt 0:00:00]} Nf6 {[%emt 0:00:39]} 5. O-O {[%emt 0:00:03]} Be7 {[%emt 0:02:24]} 6. Re1 {[%emt 0:01:07]} b5 {[%emt 0:00:37]} 7. Bb3 {[%emt 0:00:05]} d6 {[%emt 0:00:37]} 8. a4 {[%emt 0:00:10]} Bb7 {[%emt 0:03:29]} 9. c3 {[%emt 0:04:25]} Na5 {[%emt 0:10:47]} 10. Bc2 {[%emt 0:00:18]} c5 {[%emt 0:01:25]} 11. d4 {[%emt 0:02:42]} Qc7 {[%emt 0:16:20]} 12. d5 {[%emt 0:09:57]} O-O {[%emt 0:08:18]} 13. axb5 {[%emt 0:03:36]} axb5 {[%emt 0:01:24]} 14. b3 {[%emt 0:01:01]} Qb8 {[%emt 0:07:44]} 15. Nbd2 {[%emt 0:03:51]} Bc8 {[%emt 0:01:17]} 16. Bb2 {[%emt 0:03:17]} Bd7 {[%emt 0:08:19]} 17. Qe2 {[%emt 0:03:03]} Qb6 {[%emt 0:02:20]} 18. Ra2 {[%emt 0:05:37]} Ra6 {[%emt 0:02:41]} 19. b4 {[%emt 0:07:11]} Nb7 {[%emt 0:03:20]} 20. Rxa6 {[%emt 0:01:50]} Qxa6 {[%emt 0:00:07]} 21. Ra1 {[%emt 0:00:34]} Qb6 {[%emt 0:00:20]} 22. Nf1 {[%emt 0:03:17]} Rb8 {[%emt 0:03:04]} 23. Ng3 {[%emt 0:02:47]} Qd8 {[%emt 0:02:27]} 24. Ra7 {[%emt 0:05:39]} Qc8 {[%emt 0:02:34]} 25. Bd3 {[%emt 0:11:27]} c4 {[%emt 0:00:36]} 26. Bb1 {[%emt 0:02:18]} Ra8 {[%emt 0:01:15]} 27. Rxa8 {[%emt 0:07:00]} Qxa8 {[%emt 0:00:08]} 28. h3 {[%emt 0:00:51]} Qa4 {[%emt 0:02:50]} 29. Qc2 {[%emt 0:00:59]} Qxc2 {[%emt 0:00:29]} 30. Bxc2 {[%emt 0:00:04]} Ne8 1/2-1/2

[Event "55th Rubinstein Memorial-C 2019"]
[Site "Polanica-Zdroj"]
[Date "2019.08.23"]
[Round "7.6"]
[White "Karnasiewicz, Robert"]
[Black "Talik, Patryk"]
[Result "1-0"]
[ECO "E44"]
[WhiteElo "1803"]
[BlackElo "1975"]
[Annotator "NA"]
[PlyCount "95"]
[EventDate "2019.08.17"]
[EventType "swiss"]
[EventCountry "POL"]
[SourceTitle "playchess.com"]
[Source "ChessBase"]
[SourceQuality "1"]
[TimeControl "40/5400+30:1800+30"]

1. d4 {[%emt 0:04:23]} Nf6 {[%emt 0:00:08]} 2. c4 {[%emt 0:00:21]} e6 {[%emt 0:00:07]} 3. Nc3 {[%emt 0:01:51]} Bb4 {[%emt 0:00:14]} 4. e3 {[%emt 0:00:32]} b6 {[%emt 0:00:59]} 5. Nge2 {[%emt 0:00:08]} Bb7 {[%emt 0:00:23]} 6. a3 {[%emt 0:00:06]} Be7 {[%emt 0:00:15]} 7. d5 {[%emt 0:01:20]} exd5 {[%emt 0:03:46]} 8. cxd5 {[%emt 0:00:23]} Ba6 {[%emt 0:02:58]} 9. b4 {[%emt 0:00:28]} O-O {[%emt 0:04:24]} 10. b5 {[%emt 0:02:12]} Bc8 {[%emt 0:01:40]} 11. Nf4 {[%emt 0:03:10]} Bc5 {[%emt 0:01:58]} 12. Bd3 {[%emt 0:00:35]} a6 {[%emt 0:03:29]} 13. Bb2 {[%emt 0:02:04]} axb5 {[%emt 0:00:46]} 14. Nh5 {[%emt 0:01:37]} g6 {[%emt 0:04:24]} 15. Nxf6+ Qxf6 {[%emt 0:00:09]} 16. Qe2 {[%emt 0:11:31]} Qd8 {[%emt 0:03:03]} 17. Ne4 {[%emt 0:05:31]} Be7 {[%emt 0:05:43]} 18. Qc2 {[%emt 0:11:11]} d6 {[%emt 0:06:43]} 19. Qc3 {[%emt 0:00:36]} f6 {[%emt 0:00:05]} 20. Bxb5 {[%emt 0:00:23]} Ra5 {[%emt 0:10:37]} 21. a4 {[%emt 0:01:35]} Bf5 {[%emt 0:01:15]} 22. Ng3 {[%emt 0:00:50]} Bd7 {[%emt 0:00:05]} 23. Qc4 {[%emt 0:05:13]} Bxb5 {[%emt 0:06:01]} 24. axb5 {[%emt 0:00:06]} Rxa1+ {[%emt 0:00:12]} 25. Bxa1 {[%emt 0:00:01]} Nd7 {[%emt 0:02:25]} 26. O-O {[%emt 0:00:12]} f5 {[%emt 0:01:58]} 27. Ne2 {[%emt 0:00:36]} Bf6 {[%emt 0:05:14]} 28. Bxf6 {[%emt 0:01:49]} Rxf6 {[%emt 0:00:24]} 29. Ra1 {[%emt 0:00:48]} Nc5 {[%emt 0:02:43]} 30. Ra7 {[%emt 0:02:23]} Qe7 {[%emt 0:09:00]} 31. Nf4 {[%emt 0:09:41]} Rf8 {[%emt 0:02:00]} 32. Ne6 {[%emt 0:02:25]} Rc8 {[%emt 0:02:35]} 33. Nxc5 {[%emt 0:01:10]} bxc5 {[%emt 0:02:21]} 34. b6 {[%emt 0:00:09]} Qe8 {[%emt 0:08:05]} 35. b7 {[%emt 0:00:52]} Rb8 {[%emt 0:01:17]} 36. h3 {[%emt 0:02:42]} Kf7 {[%emt 0:04:40]} 37. Qa6 {[%emt 0:00:52]} Qe4 {[%emt 0:00:15]} 38. Qb5 {[%emt 0:00:36]} Qxd5 {[%emt 0:05:32]} 39. Qd7+ {[%emt 0:00:10]} Kf6 {[%emt 0:00:16]} 40. Qxc7 {[%emt 0:00:12]} Qg8 {[%emt 0:00:15]} 41. Qxd6+ {[%emt 0:30:20]} Kg5 {[%emt 0:30:40]} 42. Qf4+ {[%emt 0:02:48]} Kf6 {[%emt 0:01:03]} 43. Qd6+ {[%emt 0:01:22]} Kg5 {[%emt 0:00:07]} 44. Qxc5 {[%emt 0:01:10]} Qd8 {[%emt 0:00:32]} 45. Qe5 {[%emt 0:01:21]} Kh6 {[%emt 0:00:32]} 46. Qf4+ {[%emt 0:02:24]} Kg7 {[%emt 0:00:12]} 47. h4 {[%emt 0:01:09]} Kg8 {[%emt 0:01:18]} 48. Qxb8 {Qe7} 1-0

[Event "55th Rubinstein Memorial-C 2019"]
[Site "Polanica-Zdroj"]
[Date "2019.08.23"]
[Round "7.7"]
[White "Szczesniak, Andrzej"]
[Black "Musial, Igor"]
[Result "1/2-1/2"]
[ECO "D37"]
[WhiteElo "1954"]
[BlackElo "1717"]
[Annotator "NA"]
[PlyCount "60"]
[EventDate "2019.08.17"]
[EventType "swiss"]
[EventCountry "POL"]
[SourceTitle "playchess.com"]
[Source "ChessBase"]
[SourceQuality "1"]
[TimeControl "40/5400+30:1800+30"]

1. d4 {[%emt 0:00:00]} d5 {[%emt 0:00:00]} 2. c4 {[%emt 0:00:00]} e6 {[%emt 0:00:00]} 3. Nc3 {[%emt 0:00:00]} Nf6 {[%emt 0:00:00]} 4. Nf3 {[%emt 0:00:00]} Be7 {[%emt 0:00:19]} 5. cxd5 {[%emt 0:03:49]} exd5 {[%emt 0:01:46]} 6. Bg5 {[%emt 0:00:09]} Be6 {[%emt 0:02:30]} 7. e3 {[%emt 0:02:11]} c6 {[%emt 0:03:36]} 8. Bd3 {[%emt 0:00:30]} Nbd7 {[%emt 0:00:55]} 9. h3 {[%emt 0:01:19]} h6 {[%emt 0:04:27]} 10. Bf4 {[%emt 0:00:47]} Qb6 {[%emt 0:08:44]} 11. Qc2 {[%emt 0:07:02]} c5 {[%emt 0:11:21]} 12. dxc5 {[%emt 0:08:17]} Nxc5 {[%emt 0:01:42]} 13. O-O {[%emt 0:02:18]} O-O {[%emt 0:03:14]} 14. Nd4 {[%emt 0:07:19]} Rac8 {[%emt 0:06:30]} 15. Nf5 {[%emt 0:04:41]} Bxf5 {[%emt 0:02:09]} 16. Bxf5 {[%emt 0:00:02]} Ne6 {[%emt 0:00:23]} 17. Be5 {[%emt 0:02:03]} Rfd8 {[%emt 0:16:44]} 18. Rfd1 {[%emt 0:06:39]} Rc6 {[%emt 0:05:49]} 19. Qb3 {[%emt 0:07:40]} Nc7 {[%emt 0:06:40]} 20. Rd2 {[%emt 0:05:14]} Qxb3 {[%emt 0:05:41]} 21. axb3 {[%emt 0:00:34]} g6 {[%emt 0:01:00]} 22. Bc2 {[%emt 0:01:56]} a6 {[%emt 0:00:55]} 23. Rad1 {[%emt 0:00:24]} Nb5 {[%emt 0:03:54]} 24. e4 {[%emt 0:14:00]} Nxc3 {[%emt 0:06:44]} 25. Bxc3 {[%emt 0:01:48]} b5 {[%emt 0:00:28]} 26. exd5 {[%emt 0:01:00]} Rxd5 {[%emt 0:01:14]} 27. Rxd5 {[%emt 0:10:59]} Nxd5 {[%emt 0:00:01]} 28. Rxd5 {[%emt 0:00:18]} b4 {[%emt 0:00:05]} 29. Bd4 {[%emt 0:00:37]} Rxc2 {[%emt 0:00:34]} 30. Rd7 {[%emt 0:00:25]} Rd2 {[%emt 0:02:03]} 1/2-1/2

[Event "55th Rubinstein Memorial-C 2019"]
[Site "Polanica-Zdroj"]
[Date "2019.08.23"]
[Round "7.8"]
[White "Zgoda, Damian"]
[Black "Bartoszewicz, Marcin"]
[Result "1/2-1/2"]
[ECO "A41"]
[WhiteElo "1725"]
[BlackElo "1950"]
[Annotator "NA"]
[PlyCount "68"]
[EventDate "2019.08.17"]
[EventType "swiss"]
[EventCountry "POL"]
[SourceTitle "playchess.com"]
[Source "ChessBase"]
[SourceQuality "1"]
[TimeControl "40/5400+30:1800+30"]

1. d4 {[%emt 0:00:00]} d6 {[%emt 0:00:00]} 2. g3 {[%emt 0:01:25]} g6 {[%emt 0:00:31]} 3. Bg2 {[%emt 0:00:29]} Bg7 {[%emt 0:00:52]} 4. c3 {[%emt 0:00:37]} Nd7 {[%emt 0:06:38]} 5. Nf3 {[%emt 0:01:55]} Ngf6 {[%emt 0:02:45]} 6. O-O {[%emt 0:01:17]} O-O {[%emt 0:00:36]} 7. Nbd2 {[%emt 0:01:03]} d5 {[%emt 0:08:56]} 8. e4 {[%emt 0:12:06]} dxe4 {[%emt 0:13:01]} 9. Ng5 {[%emt 0:00:17]} e5 {[%emt 0:01:31]} 10. dxe5 {[%emt 0:06:02]} Nxe5 {[%emt 0:00:36]} 11. Ndxe4 {[%emt 0:02:36]} Bg4 {[%emt 0:10:46]} 12. Qxd8 {[%emt 0:11:25]} Raxd8 {[%emt 0:00:45]} 13. Nxf6+ {[%emt 0:00:41]} Bxf6 {[%emt 0:00:07]} 14. Bxb7 {[%emt 0:07:40]} Bxg5 {[%emt 0:06:11]} 15. Bxg5 {[%emt 0:00:53]} Rb8 {[%emt 0:00:40]} 16. Bg2 {[%emt 0:05:31]} Rxb2 {[%emt 0:00:25]} 17. Be3 {[%emt 0:06:47]} a6 {[%emt 0:04:41]} 18. h3 {[%emt 0:04:28]} Be6 {[%emt 0:00:28]} 19. Bd4 {[%emt 0:07:16]} Nc4 {[%emt 0:02:00]} 20. f4 {[%emt 0:04:05]} h5 {[%emt 0:05:06]} 21. Rf2 {[%emt 0:01:14]} Rfb8 {[%emt 0:00:20]} 22. Raf1 {[%emt 0:03:10]} a5 {[%emt 0:02:13]} 23. Rxb2 {[%emt 0:02:04]} Rxb2 {[%emt 0:01:26]} 24. Rf2 {[%emt 0:00:17]} Rb1+ {[%emt 0:04:37]} 25. Rf1 {[%emt 0:00:50]} Na3 {[%emt 0:07:23]} 26. Bc5 {[%emt 0:01:38]} Rxf1+ {[%emt 0:00:37]} 27. Bxf1 {[%emt 0:00:12]} Nb1 {[%emt 0:00:17]} 28. c4 {[%emt 0:02:12]} Nd2 {[%emt 0:00:18]} 29. a3 {[%emt 0:02:30]} Bxc4 {[%emt 0:05:11]} 30. Bg2 {[%emt 0:01:18]} Nb3 {[%emt 0:00:52]} 31. Be7 {[%emt 0:00:41]} Be6 {[%emt 0:02:28]} 32. Kf2 {[%emt 0:04:02]} Kg7 {[%emt 0:02:18]} 33. Ke3 {[%emt 0:00:37]} Bc4 {[%emt 0:06:02]} 34. Bc6 {[%emt 0:00:33]} f5 {[%emt 0:03:18] Ke4} 1/2-1/2

[Event "55th Rubinstein Memorial-C 2019"]
[Site "Polanica-Zdroj"]
[Date "2019.08.23"]
[Round "7.9"]
[White "Kardys, Zbigniew"]
[Black "Szydelko, Kazimierz"]
[Result "1-0"]
[ECO "B53"]
[WhiteElo "1949"]
[BlackElo "1717"]
[Annotator "NA"]
[PlyCount "103"]
[EventDate "2019.08.17"]
[EventType "swiss"]
[EventCountry "POL"]
[SourceTitle "playchess.com"]
[Source "ChessBase"]
[SourceQuality "1"]
[TimeControl "40/5400+30:1800+30"]

1. e4 {[%emt 0:00:00]} c5 {[%emt 0:00:00]} 2. Nf3 {[%emt 0:00:00]} d6 {[%emt 0:00:00]} 3. d4 {[%emt 0:00:16]} cxd4 {[%emt 0:00:00]} 4. Qxd4 {[%emt 0:00:09]} Nc6 {[%emt 0:00:14]} 5. Bb5 {[%emt 0:00:03]} Bd7 {[%emt 0:00:08]} 6. Bxc6 {[%emt 0:00:09]} Bxc6 {[%emt 0:03:08]} 7. Nc3 {[%emt 0:00:30]} Nf6 {[%emt 0:01:38]} 8. Bg5 {[%emt 0:00:08]} e6 {[%emt 0:01:06]} 9. O-O-O {[%emt 0:00:10]} Be7 {[%emt 0:00:12]} 10. Rhe1 {[%emt 0:00:45]} O-O {[%emt 0:00:39]} 11. e5 {[%emt 0:01:18]} dxe5 {[%emt 0:12:21]} 12. Qh4 {[%emt 0:00:22]} Qc7 {[%emt 0:07:10]} 13. Nxe5 {[%emt 0:00:25]} Rad8 {[%emt 0:01:34]} 14. Ng4 {[%emt 0:05:28]} Rxd1+ {[%emt 0:11:12]} 15. Rxd1 {[%emt 0:00:17]} Nd5 {[%emt 0:10:38]} 16. Rxd5 {[%emt 0:08:32]} f6 {[%emt 0:07:56]} 17. Rd2 {[%emt 1:01:30]} fxg5 {[%emt 0:00:20]} 18. Qh3 {[%emt 0:04:57]} Bd6 {[%emt 0:04:45]} 19. g3 {[%emt 0:05:11]} Bb4 {[%emt 0:06:22]} 20. Rd3 {[%emt 0:03:35]} Rf3 {[%emt 0:00:25]} 21. Qf1 {[%emt 0:01:38]} h5 {[%emt 0:02:38]} 22. Ne3 {[%emt 0:01:57]} Qf7 {[%emt 0:00:08]} 23. Ned1 {[%emt 0:00:30]} Bc5 {[%emt 0:07:53]} 24. Rxf3 {[%emt 0:00:32]} Qxf3 {[%emt 0:07:36]} 25. Qe2 {[%emt 0:00:18]} Kf7 {[%emt 0:03:04]} 26. Qxf3+ {[%emt 0:00:44]} Bxf3 {[%emt 0:00:02]} 27. Kd2 {[%emt 0:00:30]} Kf6 {[%emt 0:01:15]} 28. Ne3 {[%emt 0:00:12]} h4 {[%emt 0:02:27]} 29. a3 {[%emt 0:00:53]} a6 {[%emt 0:01:04]} 30. Kd3 {[%emt 0:00:15]} Be7 {[%emt 0:03:31]} 31. Ne4+ {[%emt 0:01:01]} Ke5 {[%emt 0:00:15]} 32. Nc4+ {[%emt 0:00:48]} Kf5 {[%emt 0:02:26]} 33. Ne3+ {[%emt 0:00:24]} Kg6 {[%emt 0:00:10]} 34. Nd2 {[%emt 0:01:10]} Bc6 {[%emt 0:00:36]} 35. Ne4 {[%emt 0:01:08]} Kh5 {[%emt 0:02:27]} 36. c4 {[%emt 0:01:10]} Bd8 {[%emt 0:00:55]} 37. b4 {[%emt 0:00:44]} Bf6 {[%emt 0:00:55]} 38. Nxf6+ {[%emt 0:00:43]} gxf6 {[%emt 0:00:01]} 39. g4+ {[%emt 0:00:02]} Kg6 {[%emt 0:00:18]} 40. Kd4 {[%emt 0:00:37]} Bf3 {[%emt 0:00:36]} 41. b5 {[%emt 0:30:23]} axb5 {[%emt 0:30:27]} 42. cxb5 {[%emt 0:00:03]} Kf7 {[%emt 0:01:49]} 43. a4 {[%emt 0:00:02]} Ke7 {[%emt 0:00:17]} 44. a5 {[%emt 0:00:00]} Kd6 {[%emt 0:00:16]} 45. a6 {[%emt 0:00:17]} bxa6 {[%emt 0:00:20]} 46. bxa6 Kc6 {[%emt 0:00:40]} 47. a7 {[%emt 0:00:48]} Kb7 {[%emt 0:00:18]} 48. Kc5 {[%emt 0:00:04]} Kc7 {[%emt 0:00:41]} 49. Nc4 {[%emt 0:00:35]} Kb7 50. Ne3 Kc7 51. Nc4 Kd7 52. Nb6+ {czas} 1-0